fUST/lending_fUST_20240826
["ID","MTS","AMOUNT","RATE_DAILY","PERIOD"]
[336032638,1724673052287,-153.0,0.00013,2]
[336032639,1724673052297,-248.397516,0.00013,2]
[336032640,1724673052307,-969.484601,0.00013,2]
[336032641,1724673052319,-248.397516,0.00013,2]
[336032642,1724673052329,-969.484601,0.00013,2]
[336032643,1724673052338,-2507.539314,0.00013,2]
[336032644,1724673052349,-2507.539314,0.00013,2]
[336032645,1724673052359,-500.0,0.00013005,2]
[336032646,1724673052368,-2296.09,0.00013005,2]
[336032647,1724673052377,-521.29,0.00013005,2]
[336032648,1724673052387,-4000.6,0.00013052,2]
[336032649,1724673052396,-4000.6,0.00013052,2]
[336032650,1724673052405,-4000.6,0.00013052,2]
[336032651,1724673052414,-4000.6,0.00013052,2]
[336032652,1724673052424,-4000.78007191,0.00013052,2]
[336032653,1724673052433,-500.0,0.00013053,2]
[336032654,1724673052443,-500.0,0.00013053,2]
[336032655,1724673052452,-500.0,0.00013053,2]
[336032656,1724673052461,-500.0,0.00013053,2]
[336032657,1724673052470,-1182.52,0.00013053,2]
[336032658,1724673052480,-500.0,0.00013053,2]
[336032659,1724673052492,-866.65,0.00013053,2]
[336032660,1724673052502,-676.14,0.00013053,2]
[336032661,1724673052515,-500.0,0.00013053,2]
[336032662,1724673052525,-500.0,0.00013053,2]
[336032663,1724673052536,-500.0,0.00013053,2]
[336032664,1724673052547,-500.0,0.00013053,2]
[336032665,1724673052557,-500.0,0.00013053,2]
[336032666,1724673052566,-500.0,0.00013053,2]
[336032667,1724673052576,-1011.51,0.00013053,2]
[336032668,1724673052586,-1044.04,0.00013053,2]
[336032669,1724673052595,-905.82,0.00013053,2]
[336032670,1724673052604,-500.0,0.00013053,2]
[336032671,1724673052613,-767.46,0.00013053,2]
[336032672,1724673052623,-695.47,0.00013053,2]
[336032673,1724673052633,-776.66,0.00013053,2]
[336032674,1724673052642,-761.68,0.00013053,2]
[336032675,1724673052652,-920.96,0.00013053,2]
[336032676,1724673052663,-580.58,0.00013053,2]
[336032677,1724673052672,-500.0,0.00013053,2]
[336032678,1724673052682,-500.0,0.00013053,2]
[336032679,1724673052691,-500.0,0.00013053,2]
[336032680,1724673052701,-644.13,0.00013053,2]
[336032681,1724673052711,-1131.08,0.00013053,2]
[336032682,1724673052720,-639.36,0.00013053,2]
[336032683,1724673052729,-500.0,0.00013053,2]
[336032684,1724673052739,-500.98262313,0.00013053,2]
[336032685,1724673052749,-1108.69,0.00013053,2]
[336032686,1724673052758,-500.0,0.00013053,2]
[336032687,1724673052768,-501.32742554,0.00013053,2]
[336032688,1724673052779,-500.0,0.00013053,2]
[336032689,1724673052792,-500.0,0.00013053,2]
[336032690,1724673052804,-504.37,0.00013053,2]
[336032691,1724673052815,-500.0,0.00013053,2]
[336032692,1724673052825,-568.87,0.00013053,2]
[336032693,1724673052836,-500.0,0.00013053,2]
[336032694,1724673052847,-500.0,0.00013053,2]
[336032695,1724673052857,-500.0,0.00013053,2]
[336032696,1724673052867,-500.0,0.00013053,2]
[336032697,1724673052878,-939.39,0.00013053,2]
[336032698,1724673052888,-500.0,0.00013053,2]
[336032699,1724673052898,-717.81,0.00013053,2]
[336032700,1724673052907,-500.0,0.00013053,2]
[336032701,1724673052918,-500.0,0.00013053,2]
[336032702,1724673052927,-500.0,0.00013053,2]
[336032703,1724673052937,-500.0,0.00013053,2]
[336032704,1724673052946,-500.0,0.00013053,2]
[336032705,1724673052955,-626.77,0.00013053,2]
[336032706,1724673052965,-500.0,0.00013053,2]
[336032707,1724673052974,-151.0,0.00013053,2]
[336032708,1724673052984,-151.0,0.00013053,2]
[336032709,1724673052994,-1365.58,0.00013053,2]
[336032710,1724673053005,-915.03,0.00013053,2]
[336032711,1724673053016,-500.0,0.00013053,2]
[336032712,1724673053026,-500.0,0.00013053,2]
[336032713,1724673053037,-851.87,0.00013053,2]
[336032714,1724673053049,-786.91,0.00013053,2]
[336032715,1724673053058,-2800.208892,0.00013053,2]
[336032716,1724673053067,-2800.208892,0.00013053,2]
[336032717,1724673053077,-151.0,0.00013053,2]
[336032718,1724673053086,-1497.404525,0.00013053,2]
[336032719,1724673053096,-638.3,0.00013053,2]
[336032720,1724673053105,-1497.404525,0.00013053,2]
[336032721,1724673053114,-500.0,0.00013053,2]
[336032722,1724673053123,-151.0,0.00013053,2]
[336032723,1724673053133,-328.30874,0.00013053,2]
[336032724,1724673053142,-328.30874,0.00013053,2]
[336032725,1724673053152,-500.0,0.00013053,2]
[336032726,1724673053162,-500.0,0.00013053,2]
[336032727,1724673053171,-619.47,0.00013053,2]
[336032728,1724673053181,-1133.3,0.00013053,2]
[336032729,1724673053192,-1001.26,0.00013053,2]
[336032730,1724673053203,-500.0,0.00013053,2]
[336032731,1724673053214,-528.48,0.00013053,2]
[336032732,1724673053227,-724.17,0.00013053,2]
[336032733,1724673053239,-500.0,0.00013053,2]
[336032734,1724673053249,-508.99,0.00013053,2]
[336032735,1724673053259,-151.0,0.00013053,2]
[336032736,1724673053268,-151.0,0.00013053,2]
[336032737,1724673053278,-500.0,0.00013053,2]
[336032738,1724673053288,-500.0,0.00013053,2]
[336032739,1724673053298,-500.0,0.00013053,2]
[336032740,1724673053308,-500.0,0.00013053,2]
[336032741,1724673053319,-500.0,0.00013053,2]
[336032742,1724673053329,-500.0,0.00013053,2]
[336032743,1724673053339,-500.0,0.00013053,2]
[336032744,1724673053348,-743.9,0.00013053,2]
[336032745,1724673053358,-500.0,0.00013053,2]
[336032746,1724673053367,-561.66,0.00013053,2]
[336032747,1724673053377,-588.56,0.00013053,2]
[336032748,1724673053387,-500.0,0.00013053,2]
[336032749,1724673053395,-988.54,0.00013053,2]
[336032750,1724673053404,-500.0,0.00013053,2]
[336032751,1724673053414,-694.49,0.00013053,2]
[336032752,1724673053423,-500.0,0.00013053,2]
[336032753,1724673053433,-600.19421187,0.00013073,2]
[336032754,1724673053443,-500.21206834,0.00013073,2]
[336032755,1724673053454,-664.71,0.00013074,2]
[336032756,1724673053464,-1270.22,0.00013074,2]
[336032757,1724673053474,-1027.6,0.00013074,2]
[336032758,1724673053483,-500.0,0.00013075,2]
[336032759,1724673053494,-2296.09,0.00013075,2]
[336032760,1724673053503,-521.29,0.00013075,2]
[336032761,1724673053513,-664.71,0.00013075,2]
[336032762,1724673053522,-1270.22,0.00013075,2]
[336032763,1724673053532,-1027.6,0.00013075,2]
[336032764,1724673053541,-1003.460553,0.00013076,2]
[336032765,1724673053550,-2510.337041,0.00013076,2]
[336032766,1724673053559,-2510.337041,0.00013076,2]
[336032767,1724673053568,-598.966864,0.00013076,2]
[336032768,1724673053578,-598.966864,0.00013076,2]
[336032769,1724673053588,-2310.124665,0.00013076,2]
[336032770,1724673053598,-2310.124665,0.00013076,2]
[336032771,1724673053608,-151.0,0.00013076,2]
[336032772,1724673053619,-151.0,0.00013076,2]
[336032773,1724673053630,-250.421662,0.00013076,2]
[336032774,1724673053641,-250.421662,0.00013076,2]
[336032775,1724673053652,-687.22063,0.00013076,2]
[336032776,1724673053662,-1482.055808,0.00013076,2]
[336032777,1724673053671,-687.22063,0.00013076,2]
[336032778,1724673053680,-1482.055808,0.00013076,2]
[336032779,1724673053690,-956.616756,0.00013076,2]
[336032780,1724673053699,-956.616756,0.00013076,2]
[336032781,1724673053708,-1365.948235,0.00013076,2]
[336032782,1724673053719,-1365.948235,0.00013076,2]
[336032783,1724673053730,-2643.225344,0.00013076,2]
[336032784,1724673053741,-2643.225344,0.00013076,2]
[336032785,1724673053752,-151.0,0.00013076,2]
[336032786,1724673053762,-151.0,0.00013076,2]
[336032787,1724673053773,-2267.758066,0.00013076,2]
[336032788,1724673053783,-405.083472,0.00013076,2]
[336032789,1724673053797,-2267.758066,0.00013076,2]
[336032790,1724673053807,-405.083472,0.00013076,2]
[336032791,1724673053816,-802.227793,0.00013076,2]
[336032792,1724673053825,-802.227793,0.00013076,2]
[336032793,1724673053835,-151.0,0.00013076,2]
[336032794,1724673053844,-151.0,0.00013076,2]
[336032795,1724673053854,-151.0,0.00013076,2]
[336032796,1724673053864,-500.0,0.00013084,2]
[336032797,1724673053874,-151.0,0.00013084,2]
[336032798,1724673053884,-151.0,0.00013084,2]
[336032799,1724673053893,-892.28471,0.00013084,2]
[336032800,1724673053903,-892.28471,0.00013084,2]
[336032801,1724673053912,-4256.783693,0.00013084,2]
[336032802,1724673053922,-4256.783693,0.00013084,2]
[336032803,1724673053932,-2296.09,0.00013084,2]
[336032804,1724673053944,-521.29,0.00013084,2]
[336032805,1724673053954,-664.71,0.00013084,2]
[336032806,1724673053966,-664.71,0.00013084,2]
[336032807,1724673053975,-1270.22,0.00013084,2]
[336032808,1724673053985,-1270.22,0.00013084,2]
[336032809,1724673053995,-248.397516,0.00013084,2]
[336032810,1724673054005,-969.484601,0.00013084,2]
[336032811,1724673054014,-248.397516,0.00013084,2]
[336032812,1724673054024,-969.484601,0.00013084,2]
[336032813,1724673054034,-2507.539314,0.00013084,2]
[336032814,1724673054043,-2507.539314,0.00013084,2]
[336032815,1724673054054,-1027.6,0.00013084,2]
[336032816,1724673054064,-1027.6,0.00013084,2]
[336032817,1724673054074,-500.0,0.00013085,2]
[336032818,1724673054083,-500.0,0.00013085,2]
[336032819,1724673054092,-500.0,0.00013085,2]
[336032820,1724673054102,-500.0,0.00013085,2]
[336032821,1724673054111,-500.0,0.00013085,2]
[336032822,1724673054121,-151.0,0.00013085,2]
[336032823,1724673054131,-151.0,0.00013085,2]
[336032824,1724673054140,-151.0,0.00013085,2]
[336032825,1724673054150,-730.459397,0.00013085,2]
[336032826,1724673054159,-730.459397,0.00013085,2]
[336032827,1724673054169,-2296.09,0.00013085,2]
[336032828,1724673054179,-2296.09,0.00013085,2]
[336032829,1724673054188,-2296.09,0.00013085,2]
[336032830,1724673054199,-2296.09,0.00013085,2]
[336032831,1724673054208,-2296.09,0.00013085,2]
[336032832,1724673054217,-521.29,0.00013085,2]
[336032833,1724673054226,-521.29,0.00013085,2]
[336032834,1724673054236,-521.29,0.00013085,2]
[336032835,1724673054245,-521.29,0.00013085,2]
[336032836,1724673054254,-521.29,0.00013085,2]
[336032837,1724673054264,-664.71,0.00013085,2]
[336032838,1724673054275,-664.71,0.00013085,2]
[336032839,1724673054287,-664.71,0.00013085,2]
[336032840,1724673054298,-1721.888408,0.00013085,2]
[336032841,1724673054309,-1721.888408,0.00013085,2]
[336032842,1724673054319,-151.0,0.00013085,2]
[336032843,1724673054328,-151.0,0.00013085,2]
[336032844,1724673054338,-2800.208892,0.00013085,2]
[336032845,1724673054348,-2800.208892,0.00013085,2]
[336032846,1724673054499,-151.0,0.00013085,2]
[336032847,1724673054510,-1497.404525,0.00013085,2]
[336032848,1724673054521,-1497.404525,0.00013085,2]
[336032849,1724673054531,-1270.22,0.00013085,2]
[336032850,1724673054542,-1270.22,0.00013085,2]
[336032851,1724673054551,-1270.22,0.00013085,2]
[336032852,1724673054562,-151.0,0.00013085,2]
[336032853,1724673054572,-328.30874,0.00013085,2]
[336032854,1724673054581,-328.30874,0.00013085,2]
[336032855,1724673054591,-151.0,0.00013085,2]
[336032856,1724673054600,-151.0,0.00013085,2]
[336032857,1724673054610,-1027.6,0.00013085,2]
[336032858,1724673054619,-1027.6,0.00013085,2]
[336032859,1724673054629,-1027.6,0.00013085,2]
[336032860,1724673054639,-500.0,0.00013086,2]
[336032861,1724673054648,-192.38569,0.00013086,2]
[336032862,1724673054658,-379.245962,0.00013086,2]
[336032863,1724673054667,-379.245962,0.00013086,2]
[336032864,1724673054677,-379.245962,0.00013086,2]
[336032865,1724673054686,-379.245962,0.00013086,2]
[336032866,1724673054696,-181.351329,0.00013086,2]
[336032867,1724673054705,-181.351329,0.00013086,2]
[336032868,1724673054715,-508.18806498,0.00013086,2]
[336032869,1724673054724,-500.0,0.00013086,2]
[336032870,1724673054734,-500.0,0.00013086,2]
[336032871,1724673054753,-500.0,0.00013086,2]
[336032872,1724673054762,-500.0,0.00013086,2]
[336032873,1724673054771,-500.0,0.00013086,2]
[336032874,1724673054781,-500.0,0.00013086,2]
[336032875,1724673054793,-500.88151213,0.00013086,2]
[336032876,1724673054803,-500.0,0.00013086,2]
[336032877,1724673054813,-514.41696992,0.00013086,2]
[336032878,1724673054823,-500.33429615,0.00013086,2]
[336032879,1724673054834,-500.0,0.00013086,2]
[336032880,1724673054844,-518.72962149,0.00013086,2]
[336032881,1724673054854,-501.84087692,0.00013086,2]
[336032882,1724673054865,-500.0,0.00013086,2]
[336032883,1724673054875,-500.0,0.00013086,2]
[336032884,1724673054885,-500.0,0.00013086,2]
[336032885,1724673054895,-500.0,0.00013086,2]
[336032886,1724673054904,-500.0,0.00013086,2]
[336032887,1724673054914,-500.0,0.00013086,2]
[336032888,1724673054924,-501.4283803,0.00013086,2]
[336032889,1724673054934,-500.0,0.00013086,2]
[336032890,1724673054943,-500.0,0.00013086,2]
[336032891,1724673054953,-500.0,0.00013086,2]
[336032892,1724673054963,-500.0,0.00013086,2]
[336032893,1724673054973,-500.0,0.00013086,2]
[336032894,1724673054982,-500.0,0.00013086,2]
[336032895,1724673054993,-500.0,0.00013086,2]
[336032896,1724673055003,-151.0,0.00013086,2]
[336032897,1724673055013,-151.0,0.00013086,2]
[336032898,1724673055022,-892.28471,0.00013086,2]
[336032899,1724673055032,-892.28471,0.00013086,2]
[336032900,1724673055042,-4256.783693,0.00013086,2]
[336032901,1724673055053,-4256.783693,0.00013086,2]
[336032902,1724673055063,-151.0,0.00013086,2]
[336032903,1724673055072,-151.0,0.00013086,2]
[336032904,1724673055083,-151.0,0.00013086,2]
[336032905,1724673055092,-730.459397,0.00013086,2]
[336032906,1724673055102,-730.459397,0.00013086,2]
[336032907,1724673055111,-1003.460553,0.00013086,2]
[336032908,1724673055121,-2510.337041,0.00013086,2]
[336032909,1724673055130,-2510.337041,0.00013086,2]
[336032910,1724673055139,-598.966864,0.00013086,2]
[336032911,1724673055150,-598.966864,0.00013086,2]
[336032912,1724673055160,-2310.124665,0.00013086,2]
[336032913,1724673055169,-2310.124665,0.00013086,2]
[336032914,1724673055178,-151.0,0.00013086,2]
[336032915,1724673055188,-151.0,0.00013086,2]
[336032916,1724673055197,-2296.09,0.00013086,2]
[336032917,1724673055207,-521.29,0.00013086,2]
[336032918,1724673055216,-250.421662,0.00013086,2]
[336032919,1724673055227,-250.421662,0.00013086,2]
[336032920,1724673055236,-687.22063,0.00013086,2]
[336032921,1724673055247,-1482.055808,0.00013086,2]
[336032922,1724673055258,-687.22063,0.00013086,2]
[336032923,1724673055269,-1482.055808,0.00013086,2]
[336032924,1724673055278,-1721.888408,0.00013086,2]
[336032925,1724673055287,-1721.888408,0.00013086,2]
[336032926,1724673055296,-956.616756,0.00013086,2]
[336032927,1724673055305,-956.616756,0.00013086,2]
[336032928,1724673055315,-151.0,0.00013086,2]
[336032929,1724673055324,-151.0,0.00013086,2]
[336032930,1724673055333,-1365.948235,0.00013086,2]
[336032931,1724673055343,-1365.948235,0.00013086,2]
[336032932,1724673055352,-2800.208892,0.00013086,2]
[336032933,1724673055361,-2800.208892,0.00013086,2]
[336032934,1724673055370,-151.0,0.00013086,2]
[336032935,1724673055379,-1497.404525,0.00013086,2]
[336032936,1724673055388,-1497.404525,0.00013086,2]
[336032937,1724673055398,-151.0,0.00013086,2]
[336032938,1724673055407,-328.30874,0.00013086,2]
[336032939,1724673055416,-2643.225344,0.00013086,2]
[336032940,1724673055425,-328.30874,0.00013086,2]
[336032941,1724673055434,-2643.225344,0.00013086,2]
[336032942,1724673055443,-151.0,0.00013086,2]
[336032943,1724673055452,-151.0,0.00013086,2]
[336032944,1724673055461,-2267.758066,0.00013086,2]
[336032945,1724673055470,-405.083472,0.00013086,2]
[336032946,1724673055480,-2267.758066,0.00013086,2]
[336032947,1724673055492,-405.083472,0.00013086,2]
[336032948,1724673055501,-802.227793,0.00013086,2]
[336032949,1724673055510,-151.0,0.00013086,2]
[336032950,1724673055519,-802.227793,0.00013086,2]
[336032951,1724673055528,-151.0,0.00013086,2]
[336032952,1724673055538,-151.0,0.00013086,2]
[336032953,1724673055548,-151.0,0.00013086,2]
[336032954,1724673055557,-151.0,0.00013086,2]
[336032955,1724673055567,-379.245962,0.00013087,2]
[336032956,1724673055576,-379.245962,0.00013087,2]
[336032957,1724673055585,-181.351329,0.00013087,2]
[336032958,1724673055595,-664.71,0.00013093,2]
[336032959,1724673055604,-664.71,0.00013093,2]
[336032960,1724673055613,-664.71,0.00013093,2]
[336032961,1724673055622,-664.71,0.00013093,2]
[336032962,1724673055632,-664.89505538,0.00013093,2]
[336032963,1724673055642,-1270.22,0.00013093,2]
[336032964,1724673055652,-1270.22,0.00013093,2]
[336032965,1724673055663,-1270.22,0.00013093,2]
[336032966,1724673055673,-1270.22,0.00013093,2]
[336032967,1724673055682,-1270.25415884,0.00013093,2]
[336032968,1724673055691,-248.397516,0.00013093,2]
[336032969,1724673055700,-969.484601,0.00013093,2]
[336032970,1724673055709,-121.68619658,0.00013093,2]
[336032971,1724673055727,-126.71131942,0.00013093,2]
[336032972,1724673055737,-530.43838099,0.00013093,2]
[336032973,1724673056417,-439.04622001,0.00013093,2]
[336032974,1724673056426,-2507.539314,0.00013093,2]
[336032975,1724673056435,-2507.539314,0.00013093,2]
[336032976,1724673056445,-1027.6,0.00013093,2]
[336032977,1724673056455,-1027.6,0.00013093,2]
[336032978,1724673056464,-1027.6,0.00013093,2]
[336032979,1724673056473,-1027.6,0.00013093,2]
[336032980,1724673056483,-1027.641576,0.00013093,2]
[336032981,1724673056493,-262.086838,0.00013094,2]
[336032982,1724673056502,-262.086838,0.00013094,2]
[336032983,1724673056511,-897.700406,0.00013094,2]
[336032984,1724673056520,-897.700406,0.00013094,2]
[336032985,1724673056530,-500.0,0.00013094,2]
[336032986,1724673056539,-151.0,0.00013094,2]
[336032987,1724673056548,-151.0,0.00013094,2]
[336032988,1724673056557,-2296.09,0.00013094,2]
[336032989,1724673056566,-521.29,0.00013094,2]
[336032990,1724673056578,-286.256871,0.00013095,2]
[336032991,1724673056589,-500.0,0.00013095,2]
[336032992,1724673056599,-500.0,0.00013095,2]
[336032993,1724673056610,-500.0,0.00013095,2]
[336032994,1724673056621,-500.0,0.00013095,2]
[336032995,1724673056631,-500.0,0.00013095,2]
[336032996,1724673056642,-500.0,0.00013095,2]
[336032997,1724673056653,-500.0,0.00013095,2]
[336032998,1724673056666,-528.53858389,0.00013095,2]
[336032999,1724673056678,-151.0,0.00013095,2]
[336033000,1724673056689,-151.0,0.00013095,2]
[336033001,1724673056700,-892.28471,0.00013095,2]
[336033002,1724673056709,-892.28471,0.00013095,2]
[336033003,1724673056720,-4256.783693,0.00013095,2]
[336033004,1724673056731,-4256.783693,0.00013095,2]
[336033005,1724673056742,-1003.460553,0.00013095,2]
[336033006,1724673056754,-2510.337041,0.00013095,2]
[336033007,1724673056767,-2510.337041,0.00013095,2]
[336033008,1724673056925,-598.966864,0.00013095,2]
[336033009,1724673056937,-598.966864,0.00013095,2]
[336033010,1724673056947,-2310.124665,0.00013095,2]
[336033011,1724673056959,-2310.124665,0.00013095,2]
[336033012,1724673056969,-151.0,0.00013095,2]
[336033013,1724673056978,-151.0,0.00013095,2]
[336033014,1724673056988,-2296.09,0.00013095,2]
[336033015,1724673056997,-2296.09,0.00013095,2]
[336033016,1724673057007,-2296.09,0.00013095,2]
[336033017,1724673057017,-2296.09,0.00013095,2]
[336033018,1724673057027,-2296.09,0.00013095,2]
[336033019,1724673057037,-2296.09,0.00013095,2]
[336033020,1724673057046,-2296.09,0.00013095,2]
[336033021,1724673057056,-2296.09,0.00013095,2]
[336033022,1724673057065,-2296.09,0.00013095,2]
[336033023,1724673057075,-2296.2,0.00013095,2]
[336033024,1724673057084,-521.29,0.00013095,2]
[336033025,1724673057093,-521.29,0.00013095,2]
[336033026,1724673057103,-521.29,0.00013095,2]
[336033027,1724673057112,-521.29,0.00013095,2]
[336033028,1724673057122,-521.29,0.00013095,2]
[336033029,1724673057131,-521.29,0.00013095,2]
[336033030,1724673057140,-521.29,0.00013095,2]
[336033031,1724673057149,-521.29,0.00013095,2]
[336033032,1724673057159,-521.29,0.00013095,2]
[336033033,1724673057168,-521.43604878,0.00013095,2]
[336033034,1724673057177,-250.421662,0.00013095,2]
[336033035,1724673057186,-250.421662,0.00013095,2]
[336033036,1724673057196,-687.22063,0.00013095,2]
[336033037,1724673057206,-1482.055808,0.00013095,2]
[336033038,1724673057215,-687.22063,0.00013095,2]
[336033039,1724673057225,-1482.055808,0.00013095,2]
[336033040,1724673057234,-956.616756,0.00013095,2]
[336033041,1724673057244,-956.616756,0.00013095,2]
[336033042,1724673057254,-151.0,0.00013095,2]
[336033043,1724673057263,-264.136431,0.00013095,2]
[336033044,1724673057273,-1365.948235,0.00013095,2]
[336033045,1724673057283,-1365.948235,0.00013095,2]
[336033046,1724673057292,-2800.208892,0.00013095,2]
[336033047,1724673057302,-2800.208892,0.00013095,2]
[336033048,1724673057312,-151.0,0.00013095,2]
[336033049,1724673057321,-1497.404525,0.00013095,2]
[336033050,1724673057331,-1497.404525,0.00013095,2]
[336033051,1724673057340,-151.0,0.00013095,2]
[336033052,1724673057349,-328.30874,0.00013095,2]
[336033053,1724673057359,-328.30874,0.00013095,2]
[336033054,1724673057368,-1024.36183781,0.00013095,2]
[336033055,1724673057411,-143.45447619,0.00013095,2]
[336033056,1724673058101,-500.0,0.00012444,2]
[336033057,1724673058111,-500.0,0.00012718,2]
[336033058,1724673058120,-1022.246785,0.00013095,2]
[336033059,1724673058786,-453.162245,0.00013095,2]
[336033060,1724673058798,-2643.225344,0.00013095,2]
[336033061,1724673058808,-151.0,0.00013095,2]
[336033062,1724673058818,-151.0,0.00013095,2]
[336033063,1724673058827,-2267.758066,0.00013095,2]
[336033064,1724673058838,-405.083472,0.00013095,2]
[336033065,1724673058847,-780.45294503,0.00013095,2]
[336033071,1724674048148,-314.1675348,0.00010976,2]
[336033072,1724674048174,-162.5,0.00011263,2]
[336033073,1724674048199,-162.5,0.00011294,2]
[336033074,1724674048222,-162.5,0.00011324,2]
[336033075,1724674048245,-162.5,0.00011355,2]
[336033076,1724674048268,-162.5,0.00011386,2]
[336033077,1724674048291,-162.5,0.00011417,2]
[336033078,1724674048313,-162.5,0.00011448,2]
[336033079,1724674048336,-162.5,0.00011479,2]
[336033080,1724674048358,-162.5,0.0001151,2]
[336033081,1724674048382,-162.5,0.00011541,2]
[336033082,1724674048404,-162.5,0.00011572,2]
[336033083,1724674048425,-162.5,0.00011602,2]
[336033084,1724674048446,-162.5,0.00011633,2]
[336033085,1724674048466,-162.5,0.00011664,2]
[336033086,1724674048490,-162.5,0.00011695,2]
[336033087,1724674048512,-162.5,0.00011726,2]
[336033088,1724674048534,-162.5,0.00011757,2]
[336033089,1724674048556,-162.5,0.00011788,2]
[336033090,1724674048579,-162.5,0.00011819,2]
[336033091,1724674048599,-162.5,0.00011849,2]
[336033092,1724674048620,-934.47116226,0.0001212,2]
[336033093,1724674048641,-300.0,0.00012343,2]
[336033094,1724674048661,-15682.6940048,0.00012344,2]
[336033095,1724674048681,-568.19,0.00012353,2]
[336033096,1724674048701,-501.23703615,0.00012353,2]
[336033097,1724674048721,-500.0,0.00012353,2]
[336033098,1724674048746,-763.67,0.00012353,2]
[336033099,1724674048770,-797.42,0.00012353,2]
[336033100,1724674048791,-618.21,0.00012353,2]
[336033101,1724674048812,-500.0,0.00012353,2]
[336033102,1724674048832,-500.0,0.00012353,2]
[336033103,1724674048852,-500.0,0.00012353,2]
[336033104,1724674048873,-1083.98,0.00012353,2]
[336033105,1724674048893,-500.0,0.00012353,2]
[336033106,1724674048914,-500.0,0.00012353,2]
[336033107,1724674048935,-629.2,0.00012353,2]
[336033108,1724674048957,-794.43,0.00012353,2]
[336033109,1724674048984,-500.0,0.00012353,2]
[336033110,1724674049007,-500.0,0.00012353,2]
[336033111,1724674049027,-500.0,0.00012353,2]
[336033112,1724674049047,-500.0,0.00012353,2]
[336033113,1724674049068,-500.0,0.00012353,2]
[336033114,1724674049092,-500.0,0.00012353,2]
[336033115,1724674049113,-500.0,0.00012353,2]
[336033116,1724674049134,-619.79,0.00012353,2]
[336033117,1724674049363,-500.0,0.00012353,2]
[336033118,1724674049383,-500.0,0.00012353,2]
[336033119,1724674049405,-500.0,0.00012353,2]
[336033120,1724674049425,-500.0,0.00012353,2]
[336033121,1724674049446,-500.0,0.00012353,2]
[336033122,1724674049466,-500.0,0.00012353,2]
[336033123,1724674049488,-500.0,0.00012353,2]
[336033124,1724674049509,-500.0,0.00012353,2]
[336033125,1724674049529,-500.0,0.00012353,2]
[336033126,1724674049549,-500.0,0.00012353,2]
[336033127,1724674049570,-500.0,0.00012353,2]
[336033128,1724674049592,-500.0,0.00012353,2]
[336033129,1724674049615,-632.39113115,0.00012353,2]
[336033130,1724674049635,-500.0,0.00012353,2]
[336033131,1724674049656,-811.31,0.00012353,2]
[336033132,1724674049676,-500.0,0.00012353,2]
[336033133,1724674049696,-500.0,0.00012353,2]
[336033134,1724674049717,-217.3367797,0.00012353,2]
[336033135,1724674049739,-500.0,0.00012353,2]
[336033136,1724674049759,-500.0,0.00012353,2]
[336033137,1724674049781,-500.0,0.00012353,2]
[336033138,1724674049802,-522.22,0.00012353,2]
[336033139,1724674049823,-500.0,0.00012353,2]
[336033140,1724674049847,-500.0,0.00012353,2]
[336033141,1724674049868,-500.0,0.00012353,2]
[336033142,1724674049888,-500.0,0.00012353,2]